[Event "43. Zurich Weihnachtsopen 2019"]
[Site "Zurich/SUI"]
[Date "2019.12.27"]
[Round "2.5"]
[White "Lou, Vincent"]
[Black "Kunin, Vitaly"]
[Result "0-1"]
[ECO "A41"]
[WhiteElo "2177"]
[BlackElo "2538"]
[Annotator "ChessBase"]
[PlyCount "100"]
[EventDate "2019.12.26"]
[EventType "swiss"]
[SourceTitle "playchess.com"]
[Source "ChessBase"]
[SourceQuality "1"]
[TimeControl "40/5400+30:1800+30"]

1. d4 {[%emt 0:00:00]} d6 {[%emt 0:00:00]} 2. Nf3 {[%emt 0:00:00]} Bg4 {[%emt 0:00:00]} 3. c4 {[%emt 0:01:05]} Nd7 {[%emt 0:01:00]} 4. Nc3 {[%emt 0:03:15]} c6 {[%emt 0:02:59]} 5. h3 {[%emt 0:01:12]} Bxf3 {[%emt 0:01:02]} 6. exf3 {[%emt 0:00:24]} g6 {[%emt 0:01:33]} 7. Be2 {[%emt 0:03:41]} Bg7 {[%emt 0:00:11]} 8. Be3 {[%emt 0:02:31]} a6 {[%emt 0:06:35]} 9. a4 {[%emt 0:02:31]} a5 {[%emt 0:02:14]} 10. f4 {[%emt 0:03:02]} Ngf6 {[%emt 0:02:10]} 11. g4 {[%emt 0:08:03]} e6 {[%emt 0:13:30]} 12. h4 {[%emt 0:13:35]} h5 {[%emt 0:12:05]} 13. g5 {[%emt 0:08:38]} Ng8 {[%emt 0:00:13]} 14. d5 {[%emt 0:02:33]} Nc5 {[%emt 0:10:35]} 15. Bd4 {[%emt 0:23:00]} Bxd4 {[%emt 0:07:17]} 16. Qxd4 {[%emt 0:01:39]} Rh7 {[%emt 0:00:14]} 17. Rd1 {[%emt 0:01:24]} Ne7 {[%emt 0:01:05]} 18. dxe6 {[%emt 0:07:01]} Nf5 {[%emt 0:00:45]} 19. exf7+ {[%emt 0:00:48]} Rxf7 {[%emt 0:01:34]} 20. Qh8+ {[%emt 0:04:36]} Kd7 {[%emt 0:00:31]} 21. Qxd8+ {[%emt 0:00:14]} Rxd8 {[%emt 0:00:10]} 22. Rh3 {[%emt 0:02:01]} Rdf8 {[%emt 0:01:12]} 23. Bd3 {[%emt 0:01:09]} Ne7 {[%emt 0:02:15]} 24. Ne2 {[%emt 0:04:33]} Nxa4 {[%emt 0:02:29]} 25. Rd2 {[%emt 0:00:09]} Nc5 {[%emt 0:00:46]} 26. Bc2 {[%emt 0:00:36]} a4 {[%emt 0:05:41]} 27. Kf1 {[%emt 0:05:13]} Rb8 {[%emt 0:03:22]} 28. f5 {[%emt 0:00:38]} Nxf5 {[%emt 0:00:33]} 29. Nf4 {[%emt 0:00:00]} Re8 {[%emt 0:04:44]} 30. Kg1 {[%emt 0:00:58]} Re1+ {[%emt 0:02:55]} 31. Kh2 {[%emt 0:00:07]} Ne4 {[%emt 0:01:03]} 32. Bxe4 {[%emt 0:00:52]} Rxe4 {[%emt 0:00:12]} 33. Nxg6 {[%emt 0:00:24]} Rg7 {[%emt 0:00:25]} 34. f3 {[%emt 0:00:23]} Re1 {[%emt 0:04:24]} 35. Nf4 {[%emt 0:00:27]} Rge7 {[%emt 0:00:06]} 36. Nxh5 {[%emt 0:00:44]} R1e2+ {[%emt 0:00:42]} 37. Rxe2 {[%emt 0:00:15]} Rxe2+ {[%emt 0:00:07]} 38. Kg1 {[%emt 0:00:11]} Rxb2 {[%emt 0:00:08]} 39. f4 {[%emt 0:01:05]} Rb3 {[%emt 0:00:41]} 40. Nf6+ {[%emt 0:00:27]} Ke6 {[%emt 0:00:09]} 41. Rxb3 {[%emt 0:04:09]} axb3 {[%emt 0:00:18]} 42. Ne4 {[%emt 0:00:15]} Nxh4 {[%emt 0:03:13]} 43. Kf2 {[%emt 0:00:35]} Kf5 {[%emt 0:02:23]} 44. Ke3 {[%emt 0:02:02]} Ng2+ {[%emt 0:02:25]} 45. Kd2 {[%emt 0:13:44]} Kxe4 {[%emt 0:01:25]} 46. g6 {[%emt 0:00:22]} b2 {[%emt 0:00:15]} 47. g7 {[%emt 0:00:14]} b1=Q {[%emt 0:00:13]} 48. g8=Q {[%emt 0:00:07]} Qb2+ {[%emt 0:00:28]} 49. Kd1 {[%emt 0:00:18]} Ne3+ {[%emt 0:00:12]} 50. Ke1 {[%emt 0:00:12]} Kf3 {[%emt 0:00:43]} 0-1

[Event "43. Zurich Weihnachtsopen 2019"]
[Site "Zurich/SUI"]
[Date "2019.12.27"]
[Round "2.6"]
[White "Drechsler, Christoph"]
[Black "Grover, Sahaj"]
[Result "0-1"]
[ECO "D05"]
[WhiteElo "2157"]
[BlackElo "2508"]
[Annotator "ChessBase"]
[PlyCount "86"]
[EventDate "2019.12.26"]
[EventType "swiss"]
[SourceTitle "playchess.com"]
[Source "ChessBase"]
[SourceQuality "1"]
[TimeControl "40/5400+30:1800+30"]

1. d4 {[%emt 0:12:21]} Nf6 {[%emt 0:00:00]} 2. Nf3 {[%emt 0:00:03]} e6 {[%emt 0:00:10]} 3. Nbd2 {[%emt 0:01:04]} c5 {[%emt 0:02:59]} 4. c3 {[%emt 0:00:02]} d5 {[%emt 0:03:42]} 5. e3 {[%emt 0:00:07]} Nbd7 {[%emt 0:03:36]} 6. Bd3 {[%emt 0:00:08]} Bd6 {[%emt 0:00:06]} 7. O-O {[%emt 0:00:05]} O-O {[%emt 0:00:13]} 8. Re1 {[%emt 0:00:03]} e5 {[%emt 0:05:45]} 9. e4 {[%emt 0:00:06]} Qc7 {[%emt 0:00:11]} 10. exd5 {[%emt 0:01:08]} cxd4 {[%emt 0:01:47]} 11. cxd4 {[%emt 0:00:01]} exd4 {[%emt 0:00:10]} 12. Ne4 {[%emt 0:05:06]} Nxd5 {[%emt 0:03:50]} 13. Nxd6 {[%emt 0:00:59]} Qxd6 {[%emt 0:00:12]} 14. Re4 {[%emt 0:00:03]} N7f6 {[%emt 0:03:32]} 15. Rxd4 {[%emt 0:00:58]} Qb6 {[%emt 0:05:24]} 16. Bc4 {[%emt 0:29:31]} Ne7 {[%emt 0:01:33]} 17. Qb3 {[%emt 0:14:51]} Qxb3 {[%emt 0:02:42]} 18. Bxb3 {[%emt 0:01:47]} Nc6 {[%emt 0:00:36]} 19. Rd6 {[%emt 0:02:50]} Ne4 {[%emt 0:00:28]} 20. Rd1 {[%emt 0:03:50]} Bg4 {[%emt 0:04:23]} 21. h3 {[%emt 0:00:20]} Bxf3 {[%emt 0:05:46]} 22. gxf3 {[%emt 0:00:01]} Nc5 {[%emt 0:00:08]} 23. Bc4 {[%emt 0:03:46]} Na4 {[%emt 0:14:17]} 24. Bb5 {[%emt 0:02:23]} Nb6 {[%emt 0:00:07]} 25. Bf4 {[%emt 0:00:48]} Rfd8 {[%emt 0:02:39]} 26. Bc7 {[%emt 0:03:45]} Rd5 {[%emt 0:02:32]} 27. Rxd5 {[%emt 0:05:44]} Nxd5 {[%emt 0:00:15]} 28. Bg3 {[%emt 0:00:43]} Ndb4 {[%emt 0:01:48]} 29. Ba4 {[%emt 0:04:35]} Nd3 {[%emt 0:01:48]} 30. Rb1 {[%emt 0:00:51]} Nd4 {[%emt 0:01:19]} 31. Kg2 {[%emt 0:01:46]} b5 {[%emt 0:00:12]} 32. Bd1 {[%emt 0:04:58]} Re8 {[%emt 0:00:12]} 33. Bb3 {[%emt 0:00:51]} Nxb3 {[%emt 0:02:54]} 34. axb3 {[%emt 0:00:01]} Re1 {[%emt 0:00:13]} 35. Rxe1 {[%emt 0:00:59]} Nxe1+ {[%emt 0:00:02]} 36. Kf1 {[%emt 0:00:20]} Nxf3 {[%emt 0:00:07]} 37. b4 {[%emt 0:01:02]} f5 {[%emt 0:00:14]} 38. Bb8 {[%emt 0:00:26]} a6 {[%emt 0:00:07]} 39. Ba7 {[%emt 0:00:30]} Kf7 {[%emt 0:00:08]} 40. Ke2 {[%emt 0:00:35]} Ng1+ {[%emt 0:00:30]} 41. Ke3 {[%emt 0:02:10]} Nxh3 {[%emt 0:00:15]} 42. f4 {[%emt 0:00:40]} h6 {[%emt 0:00:07]} 43. Bb8 {[%emt 0:00:38]} g5 {[%emt 0:00:08]} 0-1

[Event "43. Zurich Weihnachtsopen 2019"]
[Site "Zurich/SUI"]
[Date "2019.12.27"]
[Round "2.7"]
[White "Henderson de La Fuente, Lance"]
[Black "Akermann, Thomas"]
[Result "1-0"]
[ECO "B07"]
[WhiteElo "2492"]
[BlackElo "2175"]
[Annotator "ChessBase"]
[PlyCount "83"]
[EventDate "2019.12.26"]
[EventType "swiss"]
[SourceTitle "playchess.com"]
[Source "ChessBase"]
[SourceQuality "1"]
[TimeControl "40/5400+30:1800+30"]

1. d4 {[%emt 0:00:00]} d6 {[%emt 0:00:00]} 2. e4 {[%emt 0:00:03]} Nf6 {[%emt 0:00:03]} 3. Nc3 {[%emt 0:00:10]} c6 {[%emt 0:00:18]} 4. Nf3 {[%emt 0:01:48]} Bg4 {[%emt 0:00:28]} 5. Be3 {[%emt 0:04:47]} e6 {[%emt 0:02:32]} 6. h3 {[%emt 0:02:17]} Bh5 {[%emt 0:00:27]} 7. Bd3 {[%emt 0:04:50]} d5 {[%emt 0:01:38]} 8. e5 {[%emt 0:06:03]} Nfd7 {[%emt 0:01:08]} 9. g4 {[%emt 0:01:29]} Bg6 {[%emt 0:00:17]} 10. Bxg6 {[%emt 0:01:35]} hxg6 {[%emt 0:03:20]} 11. Ne2 {[%emt 0:00:36]} Qb6 {[%emt 0:07:46]} 12. b3 {[%emt 0:05:37]} Qa5+ {[%emt 0:03:24]} 13. Kf1 {[%emt 0:04:54]} Ba3 {[%emt 0:06:37]} 14. c3 {[%emt 0:04:07]} Nb6 {[%emt 0:07:38]} 15. Qc2 {[%emt 0:03:43]} N8d7 {[%emt 0:05:47]} 16. Kg2 {[%emt 0:01:16]} Qb5 {[%emt 0:06:11]} 17. Nf4 {[%emt 0:01:03]} O-O-O {[%emt 0:02:00]} 18. Bc1 {[%emt 0:09:40]} Qa6 {[%emt 0:07:45]} 19. c4 {[%emt 0:12:28]} dxc4 {[%emt 0:01:05]} 20. Bxa3 {[%emt 0:00:48]} Qxa3 {[%emt 0:00:09]} 21. bxc4 {[%emt 0:00:05]} Kb8 {[%emt 0:06:26]} 22. c5 {[%emt 0:04:05]} Nd5 {[%emt 0:06:11]} 23. Nxd5 {[%emt 0:00:09]} exd5 {[%emt 0:00:35]} 24. Ng5 {[%emt 0:05:22]} Nf8 {[%emt 0:10:13]} 25. Nxf7 {[%emt 0:02:10]} Ne6 {[%emt 0:00:11]} 26. Qb3 {[%emt 0:01:23]} Qa6 {[%emt 0:03:17]} 27. Qe3 {[%emt 0:01:06]} g5 {[%emt 0:04:11]} 28. Nxg5 {[%emt 0:00:34]} Nxg5 {[%emt 0:01:59]} 29. Qxg5 {[%emt 0:00:01]} Rdf8 {[%emt 0:00:24]} 30. Qe3 {[%emt 0:00:38]} g5 {[%emt 0:05:29]} 31. e6 {[%emt 0:01:03]} Ka8 {[%emt 0:01:29]} 32. e7 {[%emt 0:01:22]} Re8 {[%emt 0:01:01]} 33. Rhe1 {[%emt 0:00:14]} Rhg8 {[%emt 0:01:16]} 34. Qe6 {[%emt 0:00:43]} Rh8 {[%emt 0:01:54]} 35. Qf6 {[%emt 0:00:27]} Rhg8 {[%emt 0:00:50]} 36. Qf7 {[%emt 0:00:41]} b6 {[%emt 0:03:02]} 37. Rab1 {[%emt 0:05:05]} Kb7 {[%emt 0:00:54]} 38. Qe6 {[%emt 0:00:48]} Qa4 {[%emt 0:00:25]} 39. Qd7+ {[%emt 0:00:59]} Ka6 {[%emt 0:00:35]} 40. Qc7 {[%emt 0:01:20]} Rc8 {[%emt 0:00:34]} 41. Rxb6+ {[%emt 0:30:23]} axb6 {[%emt 0:00:40]} 42. Qxb6# {[%emt 0:00:07]} 1-0

[Event "43. Zurich Weihnachtsopen 2019"]
[Site "Zurich/SUI"]
[Date "2019.12.27"]
[Round "2.8"]
[White "Monteverde, Jonathan"]
[Black "Pikula, Dejan"]
[Result "0-1"]
[ECO "A42"]
[WhiteElo "2152"]
[BlackElo "2444"]
[Annotator "NA"]
[PlyCount "86"]
[EventDate "2019.12.26"]
[EventType "swiss"]
[SourceTitle "playchess.com"]
[Source "ChessBase"]
[SourceQuality "1"]
[TimeControl "40/5400+30:1800+30"]

1. d4 {[%emt 0:00:00]} d6 {[%emt 0:00:00]} 2. Nf3 {[%emt 0:00:00]} g6 {[%emt 0:00:00]} 3. c4 {[%emt 0:00:00]} Bg7 {[%emt 0:00:03]} 4. Nc3 {[%emt 0:00:00]} Nd7 {[%emt 0:00:05]} 5. e4 {[%emt 0:01:40]} e5 {[%emt 0:00:17]} 6. Be2 {[%emt 0:01:51]} Ne7 {[%emt 0:00:55]} 7. Be3 {[%emt 0:02:31]} O-O {[%emt 0:01:19]} 8. Qd2 {[%emt 0:22:36]} exd4 {[%emt 0:03:24]} 9. Nxd4 {[%emt 0:01:58]} Nc6 {[%emt 0:05:19]} 10. O-O {[%emt 0:02:58]} a5 {[%emt 0:13:36]} 11. Rfd1 {[%emt 0:06:28]} Nxd4 {[%emt 0:03:28]} 12. Bxd4 {[%emt 0:00:06]} b6 {[%emt 0:00:12]} 13. Nd5 {[%emt 0:02:20]} Nc5 {[%emt 0:03:45]} 14. Bxg7 {[%emt 0:05:04]} Kxg7 {[%emt 0:00:13]} 15. Qd4+ {[%emt 0:00:12]} f6 {[%emt 0:00:06]} 16. b3 {[%emt 0:00:43]} Re8 {[%emt 0:00:46]} 17. f3 {[%emt 0:00:31]} Be6 {[%emt 0:00:15]} 18. Bf1 {[%emt 0:01:38]} g5 {[%emt 0:03:43]} 19. Qc3 {[%emt 0:02:55]} h5 {[%emt 0:00:39]} 20. a3 {[%emt 0:00:48]} h4 {[%emt 0:09:53]} 21. b4 {[%emt 0:01:19]} Nd7 {[%emt 0:00:05]} 22. g3 {[%emt 0:09:35]} hxg3 {[%emt 0:04:19]} 23. hxg3 {[%emt 0:00:08]} Rh8 {[%emt 0:00:33]} 24. f4 {[%emt 0:02:17]} gxf4 {[%emt 0:02:06]} 25. gxf4 {[%emt 0:00:06]} Kf7 {[%emt 0:00:03]} 26. Rd2 {[%emt 0:03:35]} Rh4 {[%emt 0:10:37]} 27. Rf2 {[%emt 0:14:21]} Qh8 {[%emt 0:02:37]} 28. Bg2 {[%emt 0:04:58]} Rg8 {[%emt 0:00:36]} 29. Kf1 {[%emt 0:01:03]} Bh3 {[%emt 0:02:32]} 30. Ne3 {[%emt 0:06:39]} Bxg2+ {[%emt 0:06:39]} 31. Nxg2 {[%emt 0:00:06]} Rh3 {[%emt 0:00:15]} 32. Qd4 {[%emt 0:01:53]} Qh5 {[%emt 0:00:25]} 33. Ke1 {[%emt 0:01:06]} Rh2 {[%emt 0:01:55]} 34. e5 {[%emt 0:01:29]} Rhxg2 {[%emt 0:04:42]} 35. Qd5+ {[%emt 0:01:54]} Kf8 {[%emt 0:00:17]} 36. Rxg2 {[%emt 0:01:58]} Qh1+ {[%emt 0:00:09]} 37. Kf2 {[%emt 0:00:06]} Rxg2+ {[%emt 0:00:05]} 38. Qxg2 {[%emt 0:00:06]} Qxa1 {[%emt 0:00:05]} 39. Qa8+ {[%emt 0:01:49]} Ke7 {[%emt 0:01:03]} 40. exd6+ {[%emt 0:00:21]} cxd6 {[%emt 0:00:11]} 41. Qe4+ {[%emt 0:30:22]} Kd8 {[%emt 0:30:13]} 42. Qa8+ {[%emt 0:00:15]} Kc7 {[%emt 0:00:04]} 43. Qa7+ {[%emt 0:00:15]} Kc8 {[%emt 0:00:06]} 0-1

[Event "43. Zurich Weihnachtsopen 2019"]
[Site "Zurich/SUI"]
[Date "2019.12.27"]
[Round "3.1"]
[White "Loeffler, Markus"]
[Black "Lagarde, Maxime"]
[Result "0-1"]
[ECO "B23"]
[WhiteElo "2343"]
[BlackElo "2655"]
[Annotator "ChessBase"]
[PlyCount "82"]
[EventDate "2019.12.26"]
[EventType "swiss"]
[SourceTitle "playchess.com"]
[Source "ChessBase"]
[SourceQuality "1"]
[TimeControl "40/5400+30:1800+30"]

1. e4 {[%emt 0:00:00]} c5 {[%emt 0:00:00]} 2. Nc3 {[%emt 0:00:00]} d6 {[%emt 0:00:00]} 3. d4 {[%emt 0:00:07]} cxd4 {[%emt 0:00:00]} 4. Qxd4 {[%emt 0:00:05]} Nc6 {[%emt 0:00:17]} 5. Qd2 {[%emt 0:00:06]} g6 {[%emt 0:01:42]} 6. b3 {[%emt 0:00:11]} Bh6 {[%emt 0:00:07]} 7. f4 {[%emt 0:00:15]} Nf6 {[%emt 0:00:12]} 8. Bb2 {[%emt 0:00:22]} O-O {[%emt 0:00:24]} 9. O-O-O {[%emt 0:01:17]} e5 {[%emt 0:00:32]} 10. g3 {[%emt 0:03:35]} Re8 {[%emt 0:11:33]} 11. Bg2 {[%emt 0:03:17]} Bg4 {[%emt 0:00:21]} 12. Re1 {[%emt 0:12:31]} Nd4 {[%emt 0:00:57]} 13. h3 {[%emt 0:10:54]} Bd7 {[%emt 0:09:59]} 14. Kb1 {[%emt 0:06:33]} Rc8 {[%emt 0:03:20]} 15. Nf3 {[%emt 0:10:13]} Nb5 {[%emt 0:00:33]} 16. Nxb5 {[%emt 0:08:12]} Bxb5 {[%emt 0:00:09]} 17. Ng5 {[%emt 0:01:56]} Bg7 {[%emt 0:05:26]} 18. h4 {[%emt 0:04:12]} h6 {[%emt 0:10:55]} 19. Nh3 {[%emt 0:00:25]} Qc7 {[%emt 0:06:21]} 20. Nf2 {[%emt 0:00:51]} a5 {[%emt 0:03:17]} 21. Bf3 {[%emt 0:02:11]} a4 {[%emt 0:08:06]} 22. h5 {[%emt 0:02:10]} axb3 {[%emt 0:00:05]} 23. cxb3 {[%emt 0:01:17]} gxh5 {[%emt 0:02:03]} 24. Bxh5 {[%emt 0:00:30]} Qc6 {[%emt 0:07:10]} 25. Bf3 {[%emt 0:02:02]} Ra8 {[%emt 0:02:17]} 26. f5 {[%emt 0:06:24]} d5 {[%emt 0:02:54]} 27. exd5 {[%emt 0:01:14]} Qa6 {[%emt 0:00:01]} 28. Bxe5 {[%emt 0:03:39]} Rxe5 {[%emt 0:00:53]} 29. Rxe5 {[%emt 0:00:25]} Nd7 {[%emt 0:00:13]} 30. Re6 {[%emt 0:08:58]} fxe6 {[%emt 0:01:11]} 31. dxe6 {[%emt 0:02:25]} Nf6 {[%emt 0:00:24]} 32. Rc1 {[%emt 0:02:17]} Bc6 {[%emt 0:04:15]} 33. Bxc6 {[%emt 0:01:38]} bxc6 {[%emt 0:00:55]} 34. Rc4 {[%emt 0:00:10]} Qb5 {[%emt 0:01:56]} 35. g4 {[%emt 0:01:43]} Qe5 {[%emt 0:00:14]} 36. Qc3 {[%emt 0:01:58]} Qe2 {[%emt 0:08:05]} 37. Qc2 {[%emt 0:01:05]} Qe1+ {[%emt 0:01:52]} 38. Nd1 {[%emt 0:00:04]} Rd8 {[%emt 0:00:03]} 39. Kc1 {[%emt 0:00:12]} Bf8 {[%emt 0:00:15]} 40. Ra4 {[%emt 0:01:22]} Ne4 {[%emt 0:02:04]} 41. f6 {[%emt 0:03:56]} Rd2 {[%emt 0:01:41]} 0-1

[Event "43. Zurich Weihnachtsopen 2019"]
[Site "Zurich/SUI"]
[Date "2019.12.27"]
[Round "3.2"]
[White "Martirosyan, Haik M."]
[Black "Zhang, Xiaopeng"]
[Result "1-0"]
[ECO "E63"]
[WhiteElo "2613"]
[BlackElo "2339"]
[Annotator "ChessBase"]
[PlyCount "69"]
[EventDate "2019.12.26"]
[EventType "swiss"]
[SourceTitle "playchess.com"]
[Source "ChessBase"]
[SourceQuality "1"]
[TimeControl "40/5400+30:1800+30"]

1. d4 {[%emt 0:00:00]} Nf6 {[%emt 0:00:00]} 2. c4 {[%emt 0:00:00]} g6 {[%emt 0:00:00]} 3. Nf3 {[%emt 0:00:56]} Bg7 {[%emt 0:00:00]} 4. g3 {[%emt 0:00:26]} d6 {[%emt 0:00:17]} 5. Bg2 {[%emt 0:00:19]} O-O {[%emt 0:00:12]} 6. Nc3 {[%emt 0:00:48]} Nc6 {[%emt 0:00:16]} 7. O-O {[%emt 0:00:36]} a6 {[%emt 0:01:05]} 8. d5 {[%emt 0:02:16]} Na5 {[%emt 0:00:23]} 9. b3 {[%emt 0:00:22]} c5 {[%emt 0:00:34]} 10. dxc6 {[%emt 0:00:17]} bxc6 {[%emt 0:02:44]} 11. Bd2 {[%emt 0:01:52]} Bd7 {[%emt 0:07:37]} 12. Rc1 {[%emt 0:02:19]} Rb8 {[%emt 0:01:48]} 13. c5 {[%emt 0:07:59]} Nb7 {[%emt 0:05:47]} 14. cxd6 {[%emt 0:02:58]} exd6 {[%emt 0:00:14]} 15. Bf4 {[%emt 0:03:34]} Qe7 {[%emt 0:02:10]} 16. h3 {[%emt 0:07:50]} Rfd8 {[%emt 0:08:06]} 17. e4 {[%emt 0:02:39]} Be8 {[%emt 0:04:13]} 18. Qe2 {[%emt 0:02:56]} Nc5 {[%emt 0:01:48]} 19. e5 {[%emt 0:02:51]} dxe5 {[%emt 0:11:04]} 20. Nxe5 {[%emt 0:05:32]} Rbc8 {[%emt 0:02:38]} 21. Nxg6 {[%emt 0:02:34]} Qxe2 {[%emt 0:00:44]} 22. Nxe2 {[%emt 0:00:05]} hxg6 {[%emt 0:00:28]} 23. Rxc5 {[%emt 0:00:07]} Nd5 {[%emt 0:02:24]} 24. Bg5 {[%emt 0:01:40]} f6 {[%emt 0:01:00]} 25. Bd2 {[%emt 0:00:58]} Bf8 {[%emt 0:04:12]} 26. Rc4 {[%emt 0:07:20]} c5 {[%emt 0:02:18]} 27. Ba5 {[%emt 0:01:01]} Rd6 {[%emt 0:03:26]} 28. Rfc1 {[%emt 0:02:13]} Nb6 {[%emt 0:10:48]} 29. R4c2 {[%emt 0:01:36]} Bf7 {[%emt 0:02:01]} 30. Bb7 {[%emt 0:06:00]} Rcd8 {[%emt 0:06:52]} 31. Bxa6 {[%emt 0:01:18]} Rd1+ {[%emt 0:01:44]} 32. Kh2 {[%emt 0:01:31]} Rxc1 {[%emt 0:00:09]} 33. Nxc1 {[%emt 0:00:25]} Rd6 {[%emt 0:03:18]} 34. Bxb6 {[%emt 0:00:20]} Rxb6 {[%emt 0:00:05]} 35. Bc4 {[%emt 0:00:05]} 1-0

[Event "43. Zurich Weihnachtsopen 2019"]
[Site "Zurich/SUI"]
[Date "2019.12.27"]
[Round "3.3"]
[White "Colmenares, Aurelio"]
[Black "Svane, Rasmus"]
[Result "0-1"]
[ECO "B15"]
[WhiteElo "2305"]
[BlackElo "2597"]
[Annotator "ChessBase"]
[PlyCount "64"]
[EventDate "2019.12.26"]
[EventType "swiss"]
[SourceTitle "playchess.com"]
[Source "ChessBase"]
[SourceQuality "1"]
[TimeControl "40/5400+30:1800+30"]

1. e4 {[%emt 0:00:00]} c6 {[%emt 0:00:00]} 2. d4 {[%emt 0:00:00]} d5 {[%emt 0:00:00]} 3. Nd2 {[%emt 0:00:00]} dxe4 {[%emt 0:00:12]} 4. Nxe4 {[%emt 0:00:02]} Nf6 {[%emt 0:00:40]} 5. Nxf6+ {[%emt 0:00:14]} exf6 {[%emt 0:00:03]} 6. c3 {[%emt 0:00:29]} Bd6 {[%emt 0:00:12]} 7. Bd3 {[%emt 0:00:37]} O-O {[%emt 0:00:07]} 8. Ne2 {[%emt 0:01:01]} Re8 {[%emt 0:00:10]} 9. Qc2 {[%emt 0:00:39]} h5 {[%emt 0:00:19]} 10. Be3 {[%emt 0:05:13]} Nd7 {[%emt 0:00:33]} 11. O-O-O {[%emt 0:01:59]} Nf8 {[%emt 0:00:34]} 12. Kb1 {[%emt 0:10:47]} Be6 {[%emt 0:00:12]} 13. Bf5 {[%emt 0:15:36]} Bd5 {[%emt 0:26:45]} 14. Nf4 {[%emt 0:06:15]} Bxf4 {[%emt 0:00:54]} 15. Bxf4 {[%emt 0:00:10]} Qa5 {[%emt 0:07:33]} 16. b3 {[%emt 0:05:06]} Bxg2 {[%emt 0:04:26]} 17. Rhe1 {[%emt 0:00:14]} Bf3 {[%emt 0:01:18]} 18. Rc1 {[%emt 0:01:09]} Qd5 {[%emt 0:09:29]} 19. Re3 {[%emt 0:10:54]} Bg4 {[%emt 0:11:26]} 20. Bd3 {[%emt 0:09:29]} Ng6 {[%emt 0:01:52]} 21. Rce1 {[%emt 0:00:21]} Rxe3 {[%emt 0:02:37]} 22. Bxe3 {[%emt 0:01:06]} Re8 {[%emt 0:03:41]} 23. c4 {[%emt 0:14:03]} Qd7 {[%emt 0:06:06]} 24. Kb2 {[%emt 0:04:39]} Nh4 {[%emt 0:03:07]} 25. Qc3 {[%emt 0:02:56]} Rd8 {[%emt 0:06:57]} 26. h3 {[%emt 0:04:31]} Bxh3 {[%emt 0:01:12]} 27. Rh1 {[%emt 0:01:25]} Nf3 {[%emt 0:02:19]} 28. Qa5 {[%emt 0:01:56]} Bg4 {[%emt 0:02:41]} 29. d5 {[%emt 0:02:52]} b6 {[%emt 0:02:18]} 30. Qc3 {[%emt 0:00:46]} cxd5 {[%emt 0:00:12]} 31. cxd5 {[%emt 0:00:05]} Rc8 {[%emt 0:01:43]} 32. Qb4 {[%emt 0:00:53]} Qxd5 {[%emt 0:04:25]} 0-1

[Event "43. Zurich Weihnachtsopen 2019"]
[Site "Zurich/SUI"]
[Date "2019.12.27"]
[Round "3.4"]
[White "Wagner, Dennis"]
[Black "Paltrinieri, Nicholas"]
[Result "1-0"]
[ECO "A85"]
[WhiteElo "2578"]
[BlackElo "2332"]
[Annotator "ChessBase"]
[PlyCount "69"]
[EventDate "2019.12.26"]
[EventType "swiss"]
[SourceTitle "playchess.com"]
[Source "ChessBase"]
[SourceQuality "1"]
[TimeControl "40/5400+30:1800+30"]

1. d4 {[%emt 0:00:00]} e6 {[%emt 0:00:00]} 2. c4 {[%emt 0:00:00]} f5 {[%emt 0:00:00]} 3. g3 {[%emt 0:00:00]} Nf6 {[%emt 0:00:00]} 4. Nf3 {[%emt 0:00:00]} d5 {[%emt 0:00:00]} 5. Nc3 {[%emt 0:01:45]} Be7 {[%emt 0:01:18]} 6. Bg2 {[%emt 0:04:24]} Nc6 {[%emt 0:00:07]} 7. b3 {[%emt 0:05:33]} Ne4 {[%emt 0:00:08]} 8. Bb2 {[%emt 0:00:13]} Bf6 {[%emt 0:00:28]} 9. e3 {[%emt 0:00:37]} b6 {[%emt 0:10:41]} 10. Rc1 {[%emt 0:05:01]} Bb7 {[%emt 0:00:40]} 11. O-O {[%emt 0:05:46]} h5 {[%emt 0:00:48]} 12. Ne2 {[%emt 0:02:46]} Ne7 {[%emt 0:16:42]} 13. Nf4 {[%emt 0:07:06]} g5 {[%emt 0:03:18]} 14. Nd3 {[%emt 0:00:51]} Ng6 {[%emt 0:02:57]} 15. cxd5 {[%emt 0:02:29]} Bxd5 {[%emt 0:03:29]} 16. Nb4 {[%emt 0:15:38]} Qd6 {[%emt 0:14:29]} 17. Nxd5 {[%emt 0:00:18]} exd5 {[%emt 0:00:06]} 18. Qc2 {[%emt 0:07:12]} O-O-O {[%emt 0:09:02]} 19. Rfd1 {[%emt 0:05:40]} Rh7 {[%emt 0:02:13]} 20. Bf1 {[%emt 0:16:32]} h4 {[%emt 0:10:48]} 21. g4 {[%emt 0:00:17]} fxg4 {[%emt 0:07:10]} 22. Ne5 {[%emt 0:00:05]} Bxe5 {[%emt 0:00:04]} 23. dxe5 {[%emt 0:00:31]} Qf8 {[%emt 0:00:05]} 24. Rxd5 {[%emt 0:09:11]} Rxd5 {[%emt 0:04:33]} 25. Qxe4 {[%emt 0:00:02]} g3 {[%emt 0:06:40]} 26. fxg3 {[%emt 0:00:09]} hxg3 {[%emt 0:00:26]} 27. hxg3 {[%emt 0:00:07]} Qh6 {[%emt 0:02:34]} 28. Ba6+ {[%emt 0:04:14]} Kb8 {[%emt 0:02:20]} 29. Qxd5 {[%emt 0:00:06]} Qh2+ {[%emt 0:01:13]} 30. Kf1 {[%emt 0:00:02]} Rf7+ {[%emt 0:00:56]} 31. Qxf7 {[%emt 0:00:16]} Qh1+ {[%emt 0:00:04]} 32. Ke2 {[%emt 0:00:38]} Nf4+ {[%emt 0:00:10]} 33. gxf4 {[%emt 0:00:58]} Qg2+ {[%emt 0:00:06]} 34. Kd3 {[%emt 0:00:04]} Qd5+ {[%emt 0:00:05]} 35. Qxd5 {[%emt 0:00:06]} 1-0